bitfinex-derivatives/quotes_ETHF0:USTF0_20250105
["timestamp","ask_amount","ask_price","bid_price","bid_amount"]
[1736099085988,0.99967962,3634.2,3634.0,7.51679821]
[1736099086189,0.99967962,3634.2,3634.1,0.24771]
[1736099087287,0.99967962,3634.2,3634.1,3.45551]
[1736099089096,0.8528,3634.4,3634.1,4.20747962]
[1736099089395,0.8528,3634.4,3634.3,0.2477]
[1736099089591,1.85247962,3634.4,3634.3,0.2477]
[1736099091895,0.8528,3634.4,3634.3,0.2477]
[1736099092590,0.8528,3634.4,3634.2,0.2477]
[1736099092895,0.99967962,3634.3,3634.2,0.2477]
[1736099098400,0.8528,3634.4,3634.1,3.2078]
[1736099098699,0.8528,3634.4,3634.2,0.2477]
[1736099100696,0.8528,3634.4,3634.0,4.30899821]
[1736099100697,0.99967962,3634.3,3634.0,4.30899821]
[1736099100900,1.24738962,3634.1,3634.0,4.30899821]
[1736099102402,0.99967962,3634.1,3633.7,4.30899821]
[1736099102596,1.24740962,3633.8,3633.7,4.30899821]
[1736099103997,0.24775,3633.6,3633.4,0.24776]
[1736099104194,0.99967962,3633.5,3633.2,7.51679821]
[1736099104405,1.24744962,3633.3,3633.2,4.30899821]
[1736099104998,0.24777,3633.3,3633.2,4.30899821]
[1736099105300,7.24713523,3633.3,3633.2,4.30899821]
[1736099105702,6.99936523,3633.3,3633.2,4.30899821]
[1736099105899,6.99936523,3633.3,3632.8,3.6454]
[1736099106212,7.24713523,3633.3,3632.8,3.6454]
[1736099106417,7.24713523,3633.3,3633.0,0.24778]
[1736099107002,7.24713523,3633.3,3632.9,0.24779]
[1736099107209,6.99936523,3633.3,3632.9,0.24779]
[1736099107509,7.24713523,3633.3,3632.9,0.24779]
[1736099107707,6.99936523,3633.3,3632.9,0.24779]
[1736099107912,0.24777,3633.2,3632.9,0.24779]
[1736099108105,0.4448,3633.1,3632.9,0.24779]
[1736099108404,0.4448,3633.1,3632.8,3.6454]
[1736099108711,0.4448,3633.1,3632.9,0.24779]
[1736099111610,0.4286,3633.4,3632.8,3.6454]
[1736099111810,0.4286,3633.4,3633.3,0.24777]
[1736099113012,0.4286,3633.4,3633.2,3.2078]
[1736099113206,0.4286,3633.4,3633.2,3.45557]
[1736099113608,0.67636,3633.4,3633.1,0.24778]
[1736099113809,0.67636,3633.4,3633.0,0.24778]
[1736099114008,0.67636,3633.4,3632.9,0.4057]
[1736099114308,2.89359128,3633.4,3633.1,0.24778]
[1736099114510,2.89359128,3633.4,3632.9,0.24779]
[1736099114511,0.24778,3633.2,3632.9,0.24779]
[1736099114715,0.68908,3633.1,3632.8,3.89319]
[1736099114908,0.4441,3633.0,3632.8,3.89319]
[1736099115415,0.4279,3632.9,3632.8,3.89319]
[1736099115816,0.4279,3632.9,3632.8,0.68539]
[1736099116015,0.4279,3632.9,3632.6,4.30899821]
[1736099116216,2.46504128,3632.7,3632.6,3.63619821]
[1736099116410,2.46504128,3632.7,3632.4,6.84399821]
[1736099116411,0.24782,3632.5,3632.4,6.84399821]
[1736099116814,7.17358638,3632.5,3632.4,6.84399821]
[1736099117312,7.17358638,3632.5,3632.4,3.63619821]
[1736099118216,7.17358638,3632.5,3631.7,3.6186]
[1736099118217,6.92576638,3632.5,3631.7,3.6186]
[1736099118416,0.24785,3632.1,3631.8,0.24786]
[1736099118613,0.404,3632.0,3631.8,0.24786]
[1736099119011,0.65186,3632.0,3631.8,0.24786]
[1736099119422,0.24787,3631.8,3631.7,3.6186]
[1736099119620,0.67957,3631.9,3631.7,3.6186]
[1736099119814,0.4317,3631.9,3631.7,3.2078]
[1736099120015,0.24787,3631.8,3631.7,3.2078]
[1736099123918,0.24787,3631.7,3630.9,3.2078]
[1736099124119,2.21723128,3631.4,3631.0,0.4223]
[1736099124319,2.21723128,3631.4,3631.2,0.2479]
[1736099124811,2.21723128,3631.4,3631.3,0.437]
[1736099125811,2.21723128,3631.4,3631.3,0.6849]
[1736099126024,2.21723128,3631.4,3631.3,0.437]
[1736099127524,2.21723128,3631.4,3631.3,0.6849]
[1736099128321,2.21723128,3631.4,3630.8,0.24793]
[1736099128322,0.2479,3631.3,3630.8,0.24793]
[1736099128514,9.11310682,3631.4,3630.6,0.8853]
[1736099128718,2.46513128,3631.4,3631.1,0.24791]
[1736099129023,2.46513128,3631.4,3631.2,0.8853]
[1736099129525,0.2479,3631.3,3631.2,0.8853]
[1736099129732,2.21723128,3631.4,3631.2,0.8853]
[1736099130220,2.46513128,3631.4,3631.2,1.1332]
[1736099130826,2.46513128,3631.4,3631.2,0.8853]
[1736099131328,0.2479,3631.3,3631.2,0.8853]
[1736099132821,0.24792,3631.0,3630.9,3.2078]
[1736099133023,5.42503128,3631.1,3630.5,3.2078]
[1736099133228,0.24794,3630.8,3630.6,0.69255]
[1736099133422,0.4264,3630.9,3630.6,0.4446]
[1736099133617,0.24794,3630.7,3630.6,0.4446]
[1736099134017,0.4264,3630.9,3630.6,0.4446]
[1736099134337,0.24794,3630.7,3630.6,0.4446]
[1736099134522,2.21723128,3630.8,3630.6,0.4446]
[1736099134826,2.46517128,3630.8,3630.6,0.69255]
[1736099135024,0.24794,3630.7,3630.6,0.4446]
[1736099136821,2.21723128,3630.8,3630.5,3.45575]
[1736099137023,0.24794,3630.7,3630.6,0.4089]
[1736099137223,2.21723128,3630.8,3630.6,0.4089]
[1736099137426,2.21723128,3630.8,3630.6,0.65685]
[1736099137729,2.21723128,3630.8,3630.6,1.10465]
[1736099138128,2.21723128,3630.8,3630.5,3.2078]
[1736099138427,2.46517128,3630.8,3630.5,3.45575]
[1736099139321,2.21723128,3630.8,3630.5,3.2078]
[1736099139536,0.24795,3630.6,3630.5,3.2078]
[1736099139832,2.46517128,3630.8,3630.5,3.45575]
[1736099140131,2.21723128,3630.8,3630.6,0.24795]
[1736099140526,2.21723128,3630.8,3630.7,0.4053]
[1736099140723,2.46517128,3630.8,3630.7,0.4053]
[1736099141524,2.21723128,3630.8,3630.7,0.4053]
[1736099142430,2.46517128,3630.8,3630.7,0.4053]
[1736099144331,2.21723128,3630.8,3630.7,0.4053]
[1736099144725,2.21723128,3630.8,3630.7,0.65324]
[1736099145626,0.4264,3630.9,3630.8,0.24794]
[1736099145827,0.24793,3631.0,3630.8,0.24794]
[1736099146028,0.4066,3631.1,3630.8,0.24794]
[1736099146232,0.4066,3631.1,3630.9,0.24792]
[1736099146532,0.4066,3631.1,3631.0,0.24792]
[1736099146729,0.65452,3631.1,3630.8,0.24794]
[1736099147031,0.24793,3631.0,3630.8,0.24793]
[1736099147333,2.21723128,3630.9,3630.7,0.4053]
[1736099147632,0.24794,3630.8,3630.7,0.4053]
[1736099147832,0.65264,3630.8,3630.7,0.4053]
[1736099150529,0.64995467,3630.8,3630.7,0.4053]
[1736099152634,0.4047,3630.8,3630.7,0.65324]
[1736099153135,2.21723128,3630.9,3630.8,0.24794]
[1736099162742,2.46516128,3630.9,3630.8,0.24794]
[1736099163344,2.21723128,3630.9,3630.8,0.24794]
[1736099164541,2.46516128,3630.9,3630.8,0.24794]
[1736099164747,2.21723128,3630.9,3630.8,0.24794]
[1736099166747,0.24794,3630.8,3630.7,0.4053]
[1736099167138,7.10301408,3630.8,3630.7,0.4053]
[1736099167748,0.24796,3630.5,3630.4,6.46579548]
[1736099167944,0.24796,3630.5,3630.3,9.67359548]
[1736099167945,0.24796,3630.4,3630.3,9.67359548]
[1736099168245,8.04972868,3630.4,3630.3,9.67359548]
[1736099169742,12.79077379,3630.4,3630.3,3.2078]
[1736099171145,8.46307232,3630.4,3630.3,3.2078]
[1736099173353,8.02137232,3630.4,3630.3,3.2078]
[1736099173645,0.41334364,3630.4,3630.3,3.45577]
[1736099174245,3.65995929,3630.4,3630.3,3.45577]
[1736099175449,3.24661565,3630.4,3630.3,3.45577]
[1736099175749,2.16439334,3630.6,3630.5,0.24796]
[1736099177253,2.21723128,3630.7,3630.6,0.24795]
[1736099177644,2.21723128,3630.7,3630.5,0.24795]
[1736099177645,2.46518128,3630.7,3630.5,0.24795]
[1736099178350,0.24796,3630.5,3630.4,0.8798]
[1736099178540,0.24796,3630.4,3630.3,9.67359548]
[1736099178746,2.88949128,3630.4,3630.3,9.67359548]
[1736099180150,2.88949128,3630.4,3630.3,3.2078]
[1736099180648,3.32499128,3630.4,3630.3,3.2078]
[1736099181347,5.48938462,3630.4,3630.3,3.2078]
[1736099182957,4.81712462,3630.4,3630.3,3.2078]
[1736099183257,4.38162462,3630.4,3630.3,3.2078]
[1736099183458,5.04488462,3630.4,3630.3,3.2078]
[1736099184157,2.88049128,3630.4,3630.3,3.2078]
[1736099186457,5.04488462,3630.4,3630.3,3.2078]
[1736099188258,4.79692462,3630.4,3630.0,0.4272]
[1736099188459,2.46521128,3630.1,3630.0,0.4272]
[1736099188859,2.46521128,3630.1,3630.0,0.67519]
[1736099189252,2.21723128,3630.1,3629.9,3.2078]
[1736099189454,0.24801,3629.7,3629.6,6.46579548]
[1736099189751,2.46524128,3629.7,3629.6,6.46579548]
[1736099189950,9.48146376,3629.7,3629.6,6.46579548]
[1736099190661,10.33176376,3629.7,3629.6,6.46579548]
[1736099190863,0.24802,3629.6,3629.5,0.4467]
[1736099191256,13.32026156,3629.7,3629.5,0.4467]
[1736099191558,0.24802,3629.6,3629.5,0.4467]
[1736099192160,4.38089752,3629.7,3629.5,0.4467]
[1736099192348,0.24802,3629.6,3629.5,0.69472]
[1736099192951,0.24802,3629.6,3629.5,0.4467]
[1736099193154,0.24802,3629.6,3629.0,9.67359548]
[1736099193155,4.38089752,3629.7,3629.0,9.67359548]
[1736099193458,0.24805,3629.2,3629.1,0.4318]
[1736099195060,0.24805,3629.2,3628.9,0.4383]
[1736099195061,0.24806,3629.0,3628.9,0.4383]
[1736099195256,2.21723128,3629.2,3628.6,3.2078]
[1736099195455,2.64953128,3628.9,3628.5,6.46579548]
[1736099195656,5.67312128,3628.6,3628.5,6.46579548]
[1736099196757,5.67312128,3628.6,3627.8,0.8561]
[1736099196758,0.24809,3628.5,3628.2,0.24811]
[1736099196960,7.58869752,3628.6,3628.2,0.24811]
[1736099196961,2.21723128,3628.3,3628.2,0.24811]
[1736099197263,0.24813,3628.0,3627.8,0.8561]
[1736099197453,2.21723128,3627.9,3627.8,0.8561]
[1736099197658,2.46536128,3627.9,3627.8,0.8561]
[1736099197963,0.24814,3627.8,3627.7,3.2078]
[1736099198157,2.21723128,3627.9,3627.7,3.2078]
[1736099198567,2.21723128,3627.9,3627.8,0.24814]
[1736099199063,2.16366624,3628.8,3627.8,5.0]
[1736099199362,2.21723128,3628.7,3628.6,0.24809]
[1736099199567,2.21723128,3628.7,3628.4,4.2838]
[1736099199755,2.46531128,3628.7,3628.5,0.24809]
[1736099200064,2.21723128,3628.7,3628.3,0.24811]
[1736099200265,2.21723128,3628.4,3628.3,0.24811]
[1736099201257,2.21723128,3628.4,3628.0,3.6441]
[1736099201464,2.21723128,3628.1,3628.0,3.6441]
[1736099201663,2.21723128,3628.1,3628.0,3.45593]
[1736099201868,2.21723128,3628.1,3628.0,3.2078]
[1736099202469,2.46535128,3628.1,3628.0,3.2078]
[1736099204567,2.21723128,3628.1,3628.0,3.2078]
[1736099204872,2.21723128,3628.1,3628.0,3.45593]
[1736099205468,2.21723128,3628.1,3628.0,3.2078]
[1736099205770,2.21723128,3628.1,3628.0,3.45593]
[1736099205967,2.21723128,3628.1,3628.0,3.2078]
[1736099206772,2.21723128,3628.1,3628.0,3.45593]
[1736099206968,2.46535128,3628.1,3628.0,3.2078]
[1736099208372,9.40520455,3628.1,3628.0,3.2078]
[1736099213482,9.15708455,3628.1,3628.0,3.2078]
[1736099213982,9.15708455,3628.1,3628.0,3.45593]
[1736099216777,9.40520455,3628.1,3628.0,3.2078]
[1736099217581,9.40520455,3628.1,3628.0,3.45593]
[1736099217774,9.40520455,3628.1,3628.0,3.2078]
[1736099218183,9.15708455,3628.1,3627.5,3.6189]
[1736099218385,0.24815,3627.7,3627.5,0.8517]
[1736099218683,3.2078,3627.9,3627.5,0.8517]
[1736099218875,7.0223707,3627.6,3627.5,1.09986]
[1736099219081,9.23960198,3627.8,3627.5,4.0595]
[1736099219288,0.24815,3627.7,3627.5,0.8517]
[1736099219483,0.24817,3627.5,3627.1,0.24818]
[1736099219688,2.21723128,3627.5,3627.4,0.24817]
[1736099220186,2.21723128,3627.5,3627.3,3.2078]
[1736099220484,2.21723128,3627.5,3627.4,0.24817]
[1736099220788,2.21723128,3627.5,3627.3,3.45597]
[1736099220990,2.21723128,3627.5,3627.3,3.2078]
[1736099221592,2.21723128,3627.5,3627.4,0.24817]
[1736099222089,2.21723128,3627.5,3627.3,3.2078]
[1736099222998,0.4064,3627.7,3627.3,3.2078]
[1736099223194,2.21723128,3627.8,3627.6,0.24815]
[1736099223394,2.21723128,3627.8,3627.7,1.11355]
[1736099225095,2.21723128,3627.8,3627.7,0.8654]
[1736099225293,2.46537128,3627.8,3627.7,0.8654]
[1736099225899,2.46537128,3627.8,3627.7,0.4194]
[1736099226088,2.21723128,3627.8,3627.3,3.2078]
[1736099226289,0.65875,3627.7,3627.4,0.4122]
[1736099226495,0.24816,3627.6,3627.4,0.4122]
[1736099226894,0.24816,3627.5,3627.4,0.4122]
[1736099227192,2.65923128,3627.5,3627.3,3.2078]
[1736099227396,0.24817,3627.4,3627.3,3.2078]
[1736099228189,0.24818,3627.2,3627.1,0.8544]
[1736099228394,2.46541128,3627.2,3627.1,0.4122]
[1736099228989,2.21723128,3627.2,3626.8,3.2078]
[1736099229191,0.67829,3627.1,3626.8,3.2078]
[1736099229402,2.21723128,3626.9,3626.8,3.45601]
[1736099229696,2.21723128,3626.9,3626.8,3.2078]
[1736099229899,2.46543128,3626.9,3626.8,3.2078]
[1736099230392,2.21723128,3626.9,3626.8,3.45601]
[1736099230697,2.21723128,3626.9,3626.8,3.2078]
[1736099231596,2.21723128,3626.9,3626.8,3.86421]
[1736099231799,0.4301,3627.4,3627.1,0.24819]
[1736099231800,2.21723128,3627.2,3627.1,0.24819]
[1736099232194,2.65923128,3627.5,3627.3,0.24817]
[1736099232390,2.65923128,3627.5,3627.4,0.4082]
[1736099232896,2.65923128,3627.5,3627.4,0.65637]
[1736099233096,2.21723128,3627.5,3627.4,0.65637]
[1736099234093,5.42503128,3627.8,3627.4,0.4082]
[1736099234296,5.42503128,3627.8,3627.7,0.24815]
[1736099234695,2.21723128,3627.8,3627.7,0.24815]
[1736099235498,2.21723128,3627.8,3627.4,3.616]
[1736099235703,2.21723128,3627.8,3627.6,0.24815]
[1736099235897,2.46537128,3627.8,3627.6,0.24815]
[1736099236097,2.46537128,3627.8,3627.4,3.616]
[1736099236398,2.21723128,3627.5,3627.4,3.86417]
[1736099236600,2.21723128,3627.5,3627.4,3.616]
[1736099236898,2.46539128,3627.5,3627.4,3.616]
[1736099237102,2.90809128,3627.5,3627.4,3.616]
[1736099238608,2.65993128,3627.5,3627.0,1.103]
[1736099238799,2.21723128,3627.2,3627.0,1.35119]
[1736099239099,2.21723128,3627.2,3626.9,0.4151]
[1736099239304,0.2482,3627.0,3626.9,0.4151]
[1736099240294,0.24819,3627.1,3626.9,0.6633]
[1736099240498,0.24819,3627.1,3626.9,0.4151]
[1736099240698,2.21723128,3627.2,3626.8,4.32183509]
[1736099240900,2.46543128,3626.9,3626.8,4.32183509]
[1736099241207,2.21723128,3626.9,3626.8,4.57004509]
[1736099241711,2.46543128,3626.9,3626.8,4.32183509]
[1736099241894,2.90013128,3626.9,3626.7,7.77784509]
[1736099242504,2.65193128,3626.9,3626.8,0.24821]
[1736099244099,2.21723128,3627.2,3626.7,3.2078]
[1736099244309,2.21723128,3627.2,3626.6,4.32183509]
[1736099244310,2.16366624,3627.3,3627.2,0.24818]
[1736099244804,2.16366624,3627.4,3627.3,0.24818]
[1736099245806,0.24818,3627.3,3627.2,1.09798]
[1736099246008,2.16366624,3627.4,3627.2,1.09798]
[1736099246206,2.41183624,3627.4,3627.2,1.09798]
[1736099246408,0.4393,3627.5,3627.2,0.8498]
[1736099246607,2.21723128,3627.6,3627.4,0.24816]
[1736099246809,5.37146624,3627.7,3627.6,0.24815]
[1736099247805,3.2078,3627.7,3627.6,0.24815]
[1736099248409,2.16366624,3628.0,3627.5,1.103]
[1736099248604,2.16366624,3628.0,3627.9,0.24813]
[1736099250613,4.38089752,3628.2,3628.1,0.24812]
[1736099251715,4.62900752,3628.2,3628.0,0.24813]
[1736099252410,0.24812,3628.1,3627.9,3.45593]
[1736099252808,2.21723128,3628.2,3627.9,3.2078]
[1736099253009,0.24812,3628.1,3627.9,3.45593]
[1736099253612,2.46535128,3628.2,3628.0,0.24813]
[1736099253913,2.46535128,3628.2,3627.9,3.45593]
[1736099254114,5.42503128,3628.2,3627.7,4.32183509]
[1736099254418,3.45594,3627.8,3627.7,3.64893509]
[1736099254605,3.45594,3627.8,3627.7,1.63203509]
[1736099254913,10.21350235,3627.8,3627.7,1.63203509]
[1736099255210,10.21350235,3627.8,3626.9,3.2078]
[1736099255211,9.96536235,3627.8,3627.0,6.46579548]
[1736099255417,0.24819,3627.1,3627.0,6.46579548]
[1736099255620,2.46542128,3627.2,3627.0,6.46579548]
[1736099255916,2.21723128,3627.5,3627.0,6.46579548]
[1736099256116,0.24818,3627.3,3627.1,0.24819]
[1736099256311,2.21723128,3627.5,3627.0,6.46579548]
[1736099256616,0.24817,3627.4,3627.2,0.24818]
[1736099256818,0.24817,3627.4,3627.3,0.4132]
[1736099257013,4.38000745,3627.5,3627.3,0.8358]
[1736099257210,4.62816745,3627.5,3627.4,0.4199]
[1736099257417,4.38000745,3627.5,3627.4,0.4199]
[1736099258518,2.21723128,3627.5,3627.4,0.4199]
[1736099258716,2.21723128,3627.5,3627.3,0.8358]
[1736099258920,0.24817,3627.4,3627.3,0.8358]
[1736099260020,2.41094617,3627.4,3627.3,0.8358]
[1736099261418,0.24817,3627.4,3627.3,0.8358]
[1736099262720,2.16277617,3627.4,3627.1,0.4199]
[1736099262919,0.24818,3627.2,3627.1,0.4199]
[1736099263718,0.24819,3627.1,3627.0,1.103]
[1736099264015,2.21723128,3627.2,3626.9,3.2078]
[1736099264223,0.24822,3626.7,3626.6,7.71649548]
[1736099265212,0.24822,3626.7,3626.6,1.2507]
[1736099265515,2.21723128,3626.9,3626.4,6.46579548]
[1736099265516,0.24823,3626.5,3626.4,6.46579548]
[1736099265714,2.46546128,3626.5,3626.4,6.46579548]
[1736099266418,0.24823,3626.5,3626.4,6.46579548]
[1736099266621,2.46546128,3626.5,3626.4,6.46579548]
[1736099266923,2.46546128,3626.5,3626.1,0.8177]
[1736099266924,2.21723128,3626.5,3626.1,0.8177]
[1736099267214,0.24824,3626.4,3626.1,1.06595]
[1736099267416,2.21723128,3626.5,3626.1,0.8177]
[1736099267624,2.21723128,3626.5,3626.3,0.24824]
[1736099267815,2.46546128,3626.5,3626.3,3.45604]
[1736099268215,2.21723128,3626.5,3626.3,3.2078]
[1736099268618,2.21723128,3626.5,3626.4,0.24824]
[1736099268823,0.24822,3626.7,3626.4,0.24823]
[1736099269426,2.21723128,3626.8,3626.3,3.2078]
[1736099269827,0.24824,3626.5,3626.3,3.45604]
[1736099270018,2.21723128,3626.8,3626.3,3.2078]
[1736099270216,0.24824,3626.4,3626.3,3.2078]
[1736099270423,2.21723128,3626.8,3626.3,3.2078]
[1736099270424,0.24824,3626.5,3626.3,3.2078]
[1736099270618,0.24824,3626.4,3626.3,3.2078]
[1736099271024,2.21723128,3626.8,3626.3,3.2078]
[1736099271224,0.24824,3626.4,3626.3,3.2078]
[1736099271523,0.24823,3626.5,3626.3,3.2078]
[1736099271728,2.21723128,3626.8,3626.3,3.2078]
[1736099271928,0.24824,3626.4,3626.3,3.2078]
[1736099272321,0.67024,3626.4,3626.3,3.2078]
[1736099273227,0.24824,3626.4,3626.3,3.2078]
[1736099275323,0.24826,3626.0,3625.9,9.67359548]
[1736099275522,2.46549128,3626.0,3625.9,9.67359548]
[1736099275719,2.46549128,3626.0,3625.9,3.2078]
[1736099275924,2.21723128,3626.0,3625.9,3.2078]
[1736099276124,2.21723128,3626.0,3625.9,3.45607]
[1736099278326,2.21723128,3626.0,3625.9,3.2078]
[1736099278527,0.24828,3625.7,3625.6,6.46579548]
[1736099278731,2.46551128,3625.7,3625.6,6.46579548]
[1736099279123,8.98191753,3625.7,3625.5,3.2078]
[1736099279429,2.21723128,3625.7,3625.5,3.2078]
[1736099279629,2.21723128,3625.7,3625.6,0.8366]
[1736099279825,2.46551128,3625.7,3625.6,1.2437]
[1736099280030,2.21723128,3625.7,3625.6,1.49199]
[1736099280231,2.21723128,3625.7,3625.6,1.2437]
[1736099280631,2.21723128,3626.0,3625.9,0.24827]
[1736099281732,4.38000745,3626.3,3626.2,0.24825]
[1736099282132,2.21723128,3626.3,3626.2,0.24825]
[1736099283531,2.21723128,3626.3,3625.9,3.2078]
[1736099283832,2.21723128,3626.0,3625.8,0.24827]
[1736099284028,2.21723128,3626.0,3625.6,7.70949548]
[1736099284330,2.21723128,3625.7,3625.6,7.70949548]
[1736099284629,2.46551128,3625.7,3625.6,7.70949548]
[1736099285036,2.46551128,3625.7,3625.6,1.2437]
[1736099285929,0.24829,3625.6,3625.5,3.2078]
[1736099286736,0.68659,3625.6,3625.5,3.2078]
[1736099287634,0.24832,3625.2,3625.0,0.24833]
[1736099287839,0.24833,3625.1,3624.9,0.24834]
[1736099288040,2.21723128,3625.0,3624.9,0.24834]
[1736099289535,2.21723128,3625.0,3624.8,3.90074]
[1736099289840,2.46557128,3625.0,3624.8,3.90074]
[1736099290134,2.46556128,3625.0,3624.8,3.90074]
[1736099290334,2.21723128,3625.0,3624.8,3.90074]
[1736099290737,2.21723128,3625.0,3624.8,3.6524]
[1736099291039,2.21723128,3625.0,3624.9,0.24834]
[1736099291534,2.21723128,3625.6,3624.8,3.6524]
[1736099291733,2.21723128,3625.6,3625.2,3.2078]
[1736099291930,2.21723128,3625.6,3625.4,0.2483]
[1736099292331,2.21723128,3625.6,3624.8,3.6524]
[1736099292538,2.21723128,3625.3,3625.2,0.24831]
[1736099292736,2.21723128,3625.3,3624.8,3.6524]
[1736099293039,0.24832,3625.2,3624.9,0.24834]
[1736099293436,2.46557128,3625.0,3624.8,3.90074]
[1736099293742,2.21723128,3625.0,3624.8,3.6524]
[1736099294245,0.24834,3624.9,3624.8,3.6524]
[1736099294430,2.46557128,3625.0,3624.8,3.6524]
[1736099294634,2.46557128,3625.0,3624.8,3.90075]
[1736099294839,2.21723128,3625.0,3624.8,3.90075]
[1736099295549,2.21723128,3625.0,3624.9,0.24834]
[1736099296344,2.21723128,3625.3,3625.2,0.24832]
[1736099297139,2.21723128,3625.9,3625.2,3.2078]
[1736099297440,2.21723128,3625.9,3625.8,0.24828]
[1736099298747,2.46550128,3625.9,3625.7,0.4412]
[1736099299553,0.24828,3625.8,3625.7,0.4412]
[1736099301759,5.42503128,3625.9,3625.3,0.8499]
[1736099301951,2.46554128,3625.4,3625.3,0.4397]
[1736099302144,0.24834,3624.9,3624.8,4.0715]
[1736099302346,0.24574822,3624.9,3624.8,4.0715]
[1736099303047,2.21723128,3625.0,3624.8,4.0715]
[1736099303247,2.21723128,3625.0,3624.9,0.24834]
[1736099303449,0.24832,3625.2,3624.8,4.0715]
[1736099303651,2.46555128,3625.3,3625.0,0.24833]
[1736099303851,0.24832,3625.2,3625.0,0.24833]
[1736099304052,2.21723128,3625.3,3624.8,4.0715]
[1736099304350,2.21723128,3625.3,3625.2,0.24832]
[1736099304749,4.38000745,3625.9,3625.2,3.2078]
[1736099304944,0.24829,3625.7,3625.5,0.2483]
[1736099305149,0.24829,3625.7,3625.6,0.4293]
[1736099305352,2.46552128,3625.7,3625.6,0.8435]
[1736099306252,0.24831,3625.4,3625.2,3.45612]
[1736099306449,2.21723128,3625.4,3625.3,0.66251]
[1736099307250,2.21723128,3625.7,3625.3,0.4142]
[1736099307445,2.21723128,3625.7,3625.4,0.24831]
[1736099307650,2.21723128,3625.7,3625.5,0.24829]
[1736099307651,2.46552128,3625.7,3625.5,0.24829]
[1736099307852,5.12577617,3626.1,3625.7,0.24828]
[1736099308060,2.21723128,3625.9,3625.8,0.4329]
[1736099308357,2.46550128,3625.9,3625.8,0.4329]
[1736099309860,0.24828,3625.7,3625.6,3.2078]
[1736099313157,0.24828,3625.7,3625.6,0.4365]
[1736099313761,0.24828,3625.7,3625.6,0.68479]
[1736099314656,2.21723128,3625.9,3625.6,0.68479]
[1736099314863,0.24828,3625.7,3625.6,0.4365]
[1736099315358,2.21723128,3625.9,3625.6,0.4365]
[1736099315556,2.21723128,3625.9,3625.6,0.68479]
[1736099315758,0.24828,3625.8,3625.6,0.68479]
[1736099315955,2.21723128,3625.9,3625.6,0.4365]
[1736099316260,2.21723128,3625.9,3625.8,0.24828]
[1736099316452,2.16277617,3626.1,3625.7,0.4352]
[1736099316651,2.41103617,3626.1,3625.9,3.45607]
[1736099317056,2.16277617,3626.1,3626.0,0.68806]
[1736099317654,2.21723128,3626.2,3626.1,0.24826]
[1736099317855,2.16277617,3626.3,3626.2,0.24825]
[1736099318962,2.21723128,3626.5,3626.2,0.24825]
[1736099319162,0.24824,3626.4,3626.3,0.4402]
[1736099319766,2.21723128,3626.5,3626.3,0.68844]
[1736099320063,2.46546128,3626.5,3626.3,0.68844]
[1736099320857,0.24824,3626.4,3626.3,0.4402]
[1736099322763,0.24826,3626.1,3626.0,1.5418]
[1736099323462,2.46548128,3626.2,3626.0,1.79006]
[1736099323661,0.24826,3626.1,3626.0,1.5418]
[1736099324271,0.24826,3626.1,3626.0,0.4398]
[1736099324563,2.46548128,3626.2,3626.1,0.24826]
[1736099325568,4.38000745,3626.5,3626.0,0.4398]
[1736099325768,4.62823745,3626.5,3626.4,0.24824]
[1736099325958,4.38000745,3626.5,3626.4,0.24824]
[1736099326161,2.16277617,3626.5,3626.4,0.24824]
[1736099326562,2.41099617,3626.7,3626.5,0.24822]
[1736099326757,2.16277617,3626.7,3626.6,0.857]
[1736099326963,2.16277617,3626.7,3626.6,1.10522]
[1736099327764,0.24822,3626.7,3626.6,0.857]
[1736099329468,2.21723128,3626.8,3626.4,1.5302]
[1736099329469,2.21723128,3626.8,3626.4,1.1]
[1736099329673,2.46546128,3626.5,3626.4,1.1]
[1736099330073,0.24824,3626.3,3626.2,0.4249]
[1736099330368,0.24824,3626.3,3626.2,0.67315]
[1736099330570,0.24824,3626.4,3626.2,0.67315]
[1736099330767,0.24824,3626.3,3626.2,0.67315]
[1736099330966,0.24824,3626.3,3626.2,0.4249]
[1736099331573,2.21723128,3626.5,3626.2,0.67315]
[1736099331777,2.21723128,3626.5,3626.2,0.4249]
[1736099332073,0.24824,3626.3,3626.2,0.4249]
[1736099343281,2.41101617,3626.3,3626.2,0.4249]
[1736099344381,0.24824,3626.3,3626.2,0.4249]
[1736099346171,2.16277617,3626.4,3626.0,0.4067]
[1736099346172,0.24826,3626.1,3626.0,0.4067]
[1736099346381,0.24826,3626.0,3625.9,3.6271]
[1736099346577,0.24828,3625.7,3625.6,6.46579548]
[1736099346791,2.46551128,3625.7,3625.6,6.46579548]
[1736099347986,4.38000745,3625.7,3625.3,0.4414]
[1736099348188,2.46554128,3625.4,3625.3,0.4414]
[1736099351293,0.24833,3625.1,3625.0,9.67359548]
[1736099351502,2.46556128,3625.1,3625.0,9.67359548]
[1736099352192,2.46556128,3625.1,3625.0,3.2078]
[1736099355097,0.24834,3624.9,3624.8,0.8709]
[1736099355296,0.24834,3624.9,3624.8,0.4325]
[1736099355590,0.24835,3624.7,3624.6,3.2078]
[1736099355795,2.46558128,3624.7,3624.6,3.2078]
[1736099356198,2.46558128,3624.7,3624.1,9.67359548]
[1736099356199,9.22715084,3624.7,3624.1,9.67359548]
[1736099356495,2.46562128,3624.2,3624.1,9.67359548]
[1736099357807,2.46562128,3624.2,3624.0,0.4463]
[1736099358091,0.24842,3623.8,3623.7,6.46579548]
[1736099358297,2.46565128,3623.8,3623.7,6.46579548]
[1736099359290,2.46565128,3623.8,3623.6,3.6187]
[1736099359291,2.21723128,3623.8,3623.6,3.6187]
[1736099359496,2.46565128,3623.8,3623.7,0.4416]
[1736099360395,0.24842,3623.7,3623.6,3.2078]
[1736099363301,0.2484,3624.0,3623.7,0.24842]
[1736099363506,2.21723128,3624.1,3623.8,0.8406]
[1736099363806,2.21723128,3624.1,3624.0,0.2484]
[1736099364299,9.21771908,3624.1,3623.8,0.8406]
[1736099364495,9.21771908,3624.1,3624.0,0.2484]
[1736099364696,2.21723128,3624.1,3624.0,0.2484]
[1736099365094,2.21723128,3624.1,3623.8,0.8406]